bitfinex-derivatives/quotes_BNBF0:USTF0_20250904
["timestamp","ask_amount","ask_price","bid_price","bid_amount"]
[1756998045100,0.72077432,846.48,845.85,0.7943032]
[1756998045804,0.72077432,846.48,845.82,0.7943032]
[1756998046004,0.72077432,846.52,845.83,0.7943032]
[1756998046400,0.72077432,846.52,845.82,0.7943032]
[1756998046900,0.72077432,846.52,845.5,1.5845371]
[1756998046901,0.72077432,846.52,845.83,0.7943032]
[1756998047301,0.72077432,846.52,845.82,0.7943032]
[1756998049006,0.72077432,846.52,845.81,0.7943032]
[1756998049208,0.72077432,846.56,845.82,0.7943032]
[1756998049407,0.72077432,846.57,845.77,0.7943032]
[1756998049707,0.72077432,846.74,845.85,0.7943032]
[1756998049906,0.72077432,846.8,845.85,0.7943032]
[1756998051207,0.72077432,846.8,845.6,1.0563581]
[1756998051208,0.7962285,846.67,845.98,0.7943032]
[1756998051408,0.72077432,846.66,845.98,0.7943032]
[1756998052410,0.7962285,846.65,845.99,0.7943032]
[1756998052607,0.72077432,846.64,845.99,0.7943032]
[1756998053010,0.72077432,846.64,845.97,0.7943032]
[1756998053211,0.72077432,846.66,845.99,0.7943032]
[1756998053511,0.72077432,846.74,845.99,0.7943032]
[1756998054107,0.72077432,846.75,845.99,0.7943032]
[1756998055115,0.72077432,846.75,845.98,0.7943032]
[1756998056615,0.72077432,846.76,845.98,0.7943032]
[1756998056913,1.51700282,846.76,845.98,0.7943032]
[1756998057116,0.72077432,846.75,845.98,0.7943032]
[1756998057611,1.51700282,846.75,845.97,0.7943032]
[1756998057816,0.72077432,846.74,845.97,0.7943032]
[1756998058616,0.72077432,846.74,845.96,0.7943032]
[1756998059617,0.72077432,846.74,845.95,0.7943032]
[1756998060012,0.72077432,846.74,845.96,0.7943032]
[1756998060217,0.72077432,846.74,845.95,0.7943032]
[1756998060818,0.72077432,846.74,845.96,0.7943032]
[1756998061018,0.7962285,846.73,845.97,0.7943032]
[1756998061218,1.51700282,846.72,845.96,0.7943032]
[1756998061415,1.51700282,846.71,845.96,0.7943032]
[1756998061618,0.72077432,846.7,845.96,0.7943032]
[1756998062013,0.72175936,846.7,845.96,0.7943032]
[1756998062614,0.72175936,846.71,845.96,0.7943032]
[1756998063815,1.51798786,846.71,845.96,0.7943032]
[1756998064015,0.72175936,846.7,845.96,0.7943032]
[1756998064520,0.72175936,846.7,845.97,0.7943032]
[1756998065518,1.51798786,846.7,845.97,0.7943032]
[1756998065722,0.72175936,846.69,845.97,0.7943032]
[1756998069621,0.72175936,846.7,845.97,0.7943032]
[1756998072029,0.72175936,846.7,845.96,0.7943032]
[1756998072330,0.72175936,846.71,845.93,0.7943032]
[1756998072629,0.72175936,846.74,845.93,0.7943032]
[1756998073730,1.51798786,846.74,845.93,0.7943032]
[1756998073930,0.72175936,846.73,845.93,0.7943032]
[1756998075526,0.72175936,846.73,845.91,0.7943032]
[1756998075730,0.7962285,846.76,845.9,0.7943032]
[1756998075927,0.7962285,846.7,845.84,0.7943032]
[1756998076126,0.72175936,846.69,845.84,0.7943032]
[1756998076530,0.72175936,846.69,845.63,1.0563581]
[1756998076531,0.72175936,846.69,845.85,0.7943032]
[1756998076731,1.51798786,846.69,845.84,0.7943032]
[1756998076931,0.7962285,846.61,845.83,0.7943032]
[1756998077132,1.0574839,846.8,845.38,0.20561178]
[1756998077133,1.51798786,846.6,845.82,0.7943032]
[1756998077333,0.72175936,846.59,845.8,0.7943032]
[1756998077533,0.7962285,846.53,845.8,0.7943032]
[1756998077833,0.7962285,846.47,845.76,0.7943032]
[1756998078029,0.72175936,846.46,845.76,0.7943032]
[1756998078235,0.72175936,846.46,845.75,0.7943032]
[1756998078631,0.72175936,846.47,845.75,0.7943032]
[1756998081032,0.72175936,846.47,845.73,0.7943032]
[1756998081234,0.72175936,846.5,845.73,0.7943032]
[1756998082436,0.72175936,846.5,845.72,0.7943032]
[1756998083531,0.72175936,846.51,845.72,0.7943032]
[1756998084540,0.72175936,846.51,845.68,0.7943032]
[1756998085539,0.72175936,846.52,845.68,0.7943032]
[1756998085940,1.51798786,846.52,845.68,0.7943032]
[1756998086236,0.7962285,846.44,845.58,0.7943032]
[1756998086440,0.72175936,846.43,845.58,0.7943032]
[1756998087442,1.51798786,846.43,845.59,0.7943032]
[1756998087640,0.72175936,846.42,845.59,0.7943032]
[1756998088437,0.72175936,846.42,845.58,0.7943032]
[1756998088642,0.7962285,846.41,845.6,0.7943032]
[1756998088841,0.7962285,846.39,845.61,0.7943032]
[1756998089043,0.72142737,846.38,845.61,0.7943032]
[1756998089244,0.72142737,846.38,845.59,0.7943032]
[1756998089446,0.72142737,846.4,845.59,0.7943032]
[1756998090046,0.72142737,846.4,845.61,0.7943032]
[1756998090246,0.72142737,846.42,845.6,0.7943032]
[1756998090743,0.72142737,846.42,845.61,0.7943032]
[1756998090947,0.72142737,846.43,845.62,0.7943032]
[1756998091247,0.72142737,846.44,845.62,0.7943032]
[1756998091447,0.72142737,846.45,845.62,0.7943032]
[1756998092146,0.7206273,846.45,845.62,0.7943032]
[1756998093245,0.7206273,846.45,845.61,0.7943032]
[1756998093652,0.7206273,846.45,845.62,0.7943032]
[1756998093858,1.5168558,846.45,845.61,0.7943032]
[1756998094054,0.7206273,846.44,845.61,0.7943032]
[1756998094348,0.7206273,846.44,845.6,0.7943032]
[1756998095552,0.20564034,846.24,845.6,0.7943032]
[1756998095849,0.20564034,846.24,845.61,0.7943032]
[1756998096251,0.20564034,846.24,845.6,0.7943032]
[1756998097952,0.20564034,846.24,845.59,0.7943032]
[1756998098954,0.20564034,846.24,845.61,0.7943032]
[1756998099251,0.20564034,846.24,845.38,0.20561178]
[1756998099252,0.20564034,846.24,845.6,0.7943032]
[1756998100856,0.20564034,846.24,845.59,0.7943032]
[1756998102557,0.20564034,846.24,845.55,0.7943032]
[1756998103060,0.20564034,846.24,845.38,0.20561178]
[1756998103354,0.20564034,846.24,845.55,0.79287143]
[1756998104659,0.20564034,846.24,845.38,0.20561178]
[1756998104954,0.20564034,846.24,845.55,0.79290045]
[1756998105453,0.20564034,846.24,845.38,0.20561178]
[1756998105454,0.20564034,846.24,845.54,0.79290045]
[1756998108962,0.20564034,846.24,845.53,0.79290045]
[1756998111063,0.20564034,846.24,845.38,0.20561178]
[1756998111064,0.20564034,846.24,845.52,0.79290045]
[1756998112465,0.20564034,846.24,845.54,0.79290045]
[1756998113166,0.20564034,846.24,845.38,0.20561178]
[1756998113167,0.20564034,846.24,845.55,0.79290045]
[1756998114361,0.20564034,846.24,845.54,0.79290045]
[1756998115366,0.20564034,846.24,845.55,0.79290045]
[1756998116363,0.20564034,846.24,845.56,0.79290045]
[1756998117465,0.20564034,846.24,845.54,0.79290045]
[1756998118365,0.20564034,846.24,845.55,0.79290045]
[1756998119169,0.20564034,846.24,845.44,0.79290045]
[1756998120671,0.20564034,846.24,845.45,0.79290045]
[1756998121666,0.20564034,846.24,845.46,0.79290045]
[1756998122471,0.20564034,846.24,845.47,0.79290045]
[1756998123372,0.20564034,846.24,845.48,0.79290045]
[1756998123969,0.20564034,846.24,845.47,0.79290045]
[1756998124474,0.72030286,846.53,845.57,0.79290045]
[1756998124670,0.20562636,846.38,845.59,0.79290045]
[1756998124875,0.20562636,846.38,845.63,0.79290045]
[1756998125076,0.20562636,846.38,845.64,0.79290045]
[1756998125275,0.20562636,846.38,845.8,0.79290045]
[1756998126478,0.20562636,846.38,845.79,0.79290045]
[1756998126676,0.20562636,846.38,845.78,0.79290045]
[1756998127273,0.20562636,846.38,845.79,0.79290045]
[1756998129277,0.20562636,846.38,845.8,0.79290045]
[1756998130380,0.20562636,846.38,845.79,0.79290045]
[1756998131284,0.20562636,846.38,845.41,1.5845371]
[1756998131285,0.20562636,846.38,845.8,0.79290045]
[1756998132181,0.20562636,846.38,845.81,0.79290045]
[1756998132885,0.20562636,846.38,845.38,0.20561178]
[1756998132886,0.20562636,846.38,845.8,0.79290045]
[1756998133185,0.20562636,846.38,845.79,0.79290045]
[1756998133482,0.20562636,846.38,845.8,0.79290045]
[1756998135184,0.20562636,846.38,845.81,0.79290045]
[1756998136100,0.20562636,846.38,845.83,0.79290045]
[1756998136681,0.72161279,846.64,845.83,0.79290045]
[1756998136879,0.72161279,846.64,845.81,0.79290045]
[1756998137079,0.20558142,846.52,845.9,0.79290045]
[1756998137285,0.20558142,846.52,845.89,0.79290045]
[1756998137584,0.20558142,846.52,845.66,1.0563581]
[1756998137585,0.20558142,846.52,845.9,0.79290045]
[1756998138385,0.20558142,846.52,845.89,0.79290045]
[1756998139382,0.20558142,846.52,845.88,0.79290045]
[1756998140985,0.20558142,846.52,845.87,0.79290045]
[1756998142285,0.20558142,846.52,845.86,0.79290045]
[1756998142686,0.20558142,846.52,845.85,0.79290045]
[1756998143391,0.20558142,846.52,845.84,0.79290045]
[1756998145287,0.20558142,846.52,845.83,0.79290045]
[1756998146792,0.20558142,846.52,845.89,0.79290045]
[1756998147788,0.20558142,846.52,845.87,0.79290045]
[1756998151597,0.20558142,846.52,845.86,0.79290045]
[1756998152198,0.20558142,846.52,845.85,0.79290045]
[1756998152494,0.20558142,846.52,845.84,0.79290045]
[1756998156202,0.20558142,846.52,845.83,0.79290045]
[1756998157502,0.20558142,846.52,845.84,0.79290045]
[1756998158597,0.20558142,846.52,845.65,1.0563581]
[1756998158598,0.20558142,846.52,845.8,0.79290045]
[1756998158802,0.20558142,846.52,845.76,0.79290045]
[1756998161403,0.20558142,846.52,845.77,0.79290045]
[1756998162604,0.20558142,846.52,845.72,0.79290045]
[1756998163204,0.20558142,846.52,845.73,0.79290045]
[1756998165100,0.20558142,846.52,845.74,0.79290045]
[1756998166704,0.20558142,846.52,845.77,0.79290045]
[1756998167504,0.20558142,846.52,845.76,0.79290045]
[1756998168310,0.20558142,846.52,845.77,0.79290045]
[1756998169808,0.20558142,846.52,845.78,0.79290045]
[1756998172311,0.20558142,846.52,845.8,0.79290045]
[1756998172611,0.20558142,846.52,845.79,0.79290045]
[1756998173212,0.20558142,846.52,845.8,0.79290045]
[1756998174617,0.20558142,846.52,845.81,0.79290045]
[1756998175117,0.20558142,846.52,845.8,0.79290045]
[1756998175314,0.20558142,846.52,845.81,0.79290045]
[1756998175814,0.9272884,846.52,845.81,0.79290045]
[1756998176012,0.20558142,846.52,845.81,0.79290045]
[1756998176414,0.20558142,846.52,845.83,0.79290045]
[1756998177315,0.20558142,846.52,845.84,0.79290045]
[1756998177614,0.20558142,846.52,845.62,1.0563581]
[1756998177615,0.20558142,846.52,845.85,0.79290045]
[1756998178218,0.20558142,846.52,845.86,0.79290045]
[1756998179319,0.20558142,846.52,845.88,0.79290045]
[1756998180918,0.20558142,846.52,845.89,0.79290045]
[1756998181621,0.20558142,846.52,845.9,0.79290045]
[1756998182419,0.20558142,846.52,845.95,0.79290045]
[1756998183317,0.20558142,846.52,845.96,0.79290045]
[1756998184118,0.20558142,846.52,845.9,0.79290045]
[1756998184317,0.20558142,846.52,845.92,0.79290045]
[1756998186422,0.20558142,846.52,845.9,0.79290045]
[1756998187724,0.20558142,846.52,845.91,0.79290045]
[1756998187918,0.20558142,846.52,845.9,0.79290045]
[1756998192323,0.20558142,846.52,845.91,0.79290045]
[1756998192628,0.20558142,846.52,845.89,0.79290045]
[1756998193425,0.20558142,846.52,845.88,0.79290045]
[1756998194027,0.20558142,846.52,845.91,0.7960091]
[1756998194226,0.20558142,846.52,845.92,0.7960091]
[1756998195829,0.20558142,846.52,845.91,0.7960091]
[1756998196033,0.20558142,846.52,845.89,0.7960091]
[1756998197634,0.20558142,846.52,845.87,0.7960091]
[1756998197833,0.79650991,846.5,845.83,0.7960091]
[1756998198029,0.72323176,846.49,845.83,0.7960091]
[1756998199233,0.72323176,846.49,845.82,0.7960091]
[1756998199430,0.72323176,846.48,845.82,0.7960091]
[1756998199629,0.72323176,846.47,845.82,0.7960091]
[1756998199834,0.72323176,846.46,845.82,0.7960091]
[1756998200029,0.72323176,846.45,845.82,0.7960091]
[1756998200234,0.72323176,846.44,845.82,0.7960091]
[1756998200433,0.72323176,846.43,845.81,0.7960091]
[1756998200729,0.72323176,846.42,845.81,0.7960091]
[1756998200933,0.72323176,846.41,845.81,0.7960091]
[1756998201234,0.72323176,846.4,845.61,1.0563581]
[1756998201435,0.72323176,846.39,845.81,0.79607983]
[1756998201729,0.72323176,846.38,845.81,0.79607983]
[1756998201927,0.72323176,846.37,845.81,0.79607983]
[1756998202130,0.72323176,846.36,845.81,0.79607983]
[1756998202332,0.72323176,846.35,845.81,0.79607983]
[1756998202628,1.00204359,846.52,845.81,0.79607983]
[1756998202830,0.72309844,846.51,845.81,0.79607983]
[1756998204130,0.72309844,846.5,845.81,0.79607983]
[1756998204328,0.72309844,846.49,845.81,0.79607983]
[1756998204530,0.72309844,846.48,845.8,0.79607983]
[1756998204734,0.72309844,846.47,845.8,0.79607983]
[1756998204935,0.72309844,846.46,845.8,0.79607983]
[1756998205131,0.72309844,846.45,845.8,0.79607983]
[1756998205334,0.72309844,846.44,845.8,0.79607983]
[1756998205537,0.72309844,846.43,845.8,0.79607983]
[1756998205734,0.72309844,846.42,845.81,0.79607983]
[1756998205934,0.72309844,846.41,845.81,0.79607983]
[1756998206138,0.72309844,846.4,845.81,0.79607983]
[1756998206338,0.72309844,846.39,845.81,0.79607983]
[1756998206538,0.72309844,846.38,845.81,0.79607983]
[1756998206838,0.72309844,846.37,845.81,0.79607983]
[1756998207037,0.72309844,846.36,845.81,0.79607983]
[1756998207337,0.72309844,846.35,845.81,0.79607983]
[1756998207534,0.7229708,846.34,845.83,0.79607983]
[1756998207835,0.20558142,846.52,845.8,0.79607983]
[1756998208735,0.20558142,846.52,845.59,1.0563581]
[1756998208939,0.20558142,846.52,845.8,0.79557569]
[1756998209241,0.92854923,846.52,845.8,0.79557569]
[1756998210039,0.92854923,846.52,845.65,0.79557569]
[1756998210243,0.72296781,846.51,845.65,0.79557569]
[1756998210442,0.72296781,846.5,845.65,0.79557569]
[1756998210641,0.72296781,846.49,845.65,0.79557569]
[1756998210941,0.72296781,846.48,845.65,0.79557569]
[1756998211239,0.72296781,846.47,845.65,0.79557569]
[1756998211444,0.72296781,846.46,845.65,0.79557569]
[1756998211743,0.72296781,846.45,845.65,0.79557569]
[1756998211940,0.72296781,846.44,845.65,0.79557569]
[1756998212139,0.72296781,846.43,845.65,0.79557569]
[1756998212339,0.72296781,846.42,845.65,0.79557569]
[1756998212539,0.72296781,846.41,845.65,0.79557569]
[1756998212744,0.20558142,846.52,845.65,0.79557569]
[1756998215142,0.20558142,846.52,845.63,0.79557569]
[1756998218453,0.92764723,846.52,845.63,0.79557569]
[1756998218752,0.72206581,846.51,845.63,0.79557569]
[1756998219053,0.20558142,846.52,845.63,0.79557569]
[1756998219755,0.20558142,846.52,845.61,0.79557569]
[1756998220055,0.20558142,846.52,845.68,0.79557569]
[1756998221153,0.20558142,846.52,845.69,0.79557569]
[1756998221552,0.20558142,846.52,845.68,0.79557569]
[1756998221856,0.79622184,846.49,845.73,0.79557569]
[1756998222156,0.79622184,846.43,845.67,0.79557569]
[1756998222453,0.72206581,846.42,845.66,0.79557569]
[1756998222654,0.72206581,846.42,845.64,0.79557569]
[1756998222853,1.51828765,846.45,845.64,0.79557569]
[1756998223050,0.72206581,846.44,845.64,0.79557569]
[1756998223453,0.72206581,846.44,845.63,0.79557569]
[1756998224054,0.72206581,846.44,845.56,0.79557569]
[1756998224258,0.72206581,846.51,845.56,0.79557569]
[1756998224751,0.72206581,846.51,845.55,0.79557569]
[1756998224953,0.72206581,846.51,845.56,0.79557569]
[1756998225858,0.20558142,846.52,845.56,0.79557569]
[1756998226560,0.20558142,846.52,845.55,0.79557569]
[1756998227260,0.20558142,846.52,845.56,0.79557569]
[1756998227459,0.92764723,846.52,845.56,0.79557569]
[1756998227755,0.72206581,846.51,845.55,0.79557569]
[1756998227960,0.20558142,846.52,845.55,0.79557569]
[1756998229456,0.20558142,846.52,845.54,0.79557569]
[1756998229656,0.92764723,846.52,845.54,0.79557569]
[1756998229859,0.72206581,846.51,845.54,0.79557569]
[1756998230557,0.20558142,846.52,845.54,0.79557569]
[1756998231257,0.20558142,846.52,845.55,0.79557569]
[1756998231861,0.92764723,846.52,845.55,0.79557569]
[1756998232062,0.72206581,846.51,845.55,0.79557569]
[1756998232259,0.79622184,846.46,845.62,0.79557569]
[1756998232562,0.72206581,846.45,845.62,0.79557569]
[1756998232762,0.72206581,846.45,845.6,0.79557569]
[1756998233061,0.72206581,846.46,845.59,0.79557569]
[1756998233262,0.72206581,846.47,845.59,0.79557569]
[1756998233661,1.51828765,846.47,845.58,0.79557569]
[1756998233864,0.72206581,846.46,845.58,0.79557569]
[1756998234064,0.72206581,846.46,845.59,0.79557569]
[1756998234265,0.72206581,846.47,845.59,0.79557569]
[1756998234467,0.72206581,846.47,845.58,0.79557569]
[1756998234666,0.79622184,846.46,845.57,0.79557569]
[1756998234865,0.72206581,846.45,845.57,0.79557569]
[1756998235265,0.72206581,846.45,845.16,1.79019202]
[1756998235266,0.79622184,846.44,845.58,0.79557569]
[1756998235566,0.72206581,846.43,845.58,0.79557569]
[1756998236369,0.79622184,846.37,845.62,0.79557569]
[1756998236665,0.79622184,846.3,845.54,0.79557569]
[1756998236867,0.72206581,846.29,845.54,0.79557569]
[1756998237564,0.72206581,846.3,845.54,0.79557569]
[1756998238268,0.72206581,846.3,845.53,0.79557569]
[1756998239768,0.72206581,846.31,845.53,0.79557569]
[1756998239970,0.72074742,846.31,845.53,0.79557569]
[1756998240773,0.79622184,846.3,845.54,0.79557569]
[1756998240974,0.72074742,846.29,845.54,0.79557569]
[1756998241270,0.72074742,846.29,845.53,0.79557569]
[1756998242670,1.51696926,846.29,845.54,0.79557569]
[1756998242874,0.72074742,846.28,845.5,0.79557569]
[1756998243174,0.72074742,846.33,845.5,0.79557569]
[1756998244174,0.72074742,846.33,845.42,0.79557569]
[1756998244371,0.72074742,846.4,845.41,0.79557569]
[1756998244570,0.72074742,846.41,845.41,0.79557569]
[1756998248672,0.72074742,846.41,845.4,0.79557569]
[1756998248875,0.72074742,846.42,845.4,0.79557569]
[1756998249676,0.72074742,846.42,845.41,0.79557569]
[1756998249877,0.72074742,846.44,845.56,0.79557569]
[1756998250177,1.51696926,846.45,845.55,0.79557569]
[1756998250473,0.72074742,846.44,845.56,0.79557569]
[1756998250673,0.72074742,846.44,845.55,0.79557569]
[1756998251372,0.72074742,846.44,845.56,0.79557569]
[1756998253279,0.72074742,846.44,845.49,0.79557569]
[1756998253575,0.72074742,846.51,845.51,0.79557569]
[1756998254079,0.20558142,846.52,845.51,0.79557569]
[1756998254374,0.20558142,846.52,845.52,0.79557569]
[1756998254579,0.20558142,846.52,845.51,0.79557569]
[1756998254777,0.92632884,846.52,845.51,0.79557569]
[1756998255080,0.72074742,846.51,845.51,0.79557569]
[1756998255478,0.72074742,846.51,845.52,0.79557569]
[1756998255679,0.72074742,846.51,845.5,0.79557569]
[1756998255982,0.20558142,846.52,845.54,0.79557569]
[1756998256382,0.20558142,846.52,845.55,0.79557569]
[1756998257077,0.92632884,846.52,845.55,0.79557569]
[1756998257281,0.72074742,846.51,845.55,0.79557569]
[1756998257478,0.20558142,846.52,845.56,0.79557569]
[1756998258081,0.20558142,846.52,845.56,0.79517597]
[1756998259679,0.20558142,846.52,845.27,1.0563581]
[1756998259680,0.20558142,846.52,845.6,0.79517597]
[1756998260184,0.20558142,846.52,845.61,0.79517597]
[1756998260785,0.20558142,846.52,845.62,0.79517597]
[1756998262983,0.79484745,846.49,845.65,0.79517597]
[1756998263188,1.51559487,846.48,845.67,0.79517597]
[1756998263387,0.72074742,846.47,845.68,0.79517597]
[1756998264483,1.51559487,846.47,845.68,0.79517597]
[1756998264683,0.72074742,846.46,845.68,0.79517597]
[1756998265587,1.51559487,846.46,845.69,0.79517597]
[1756998265787,0.72074742,846.45,845.71,0.79517597]
[1756998266087,0.72074742,846.48,845.71,0.79517597]
[1756998266385,1.51559487,846.48,845.71,0.79517597]
[1756998266590,0.72074742,846.47,845.71,0.79517597]
[1756998268186,0.72074742,846.47,845.72,0.79517597]
[1756998268885,1.51559487,846.47,845.72,0.79517597]
[1756998269090,0.72074742,846.46,845.72,0.79517597]
[1756998269291,1.51559487,846.46,845.73,0.79517597]
[1756998269489,0.72074742,846.45,845.73,0.79517597]
[1756998269690,1.51559487,846.45,845.74,0.79517597]
[1756998269890,0.72074742,846.44,845.74,0.79517597]
[1756998270087,0.72074742,846.44,845.75,0.79517597]
[1756998270088,1.51559487,846.44,845.75,0.79517597]
[1756998270288,0.72074742,846.43,845.75,0.79517597]
[1756998270789,0.79484745,846.42,845.76,0.79517597]
[1756998270992,0.72074742,846.41,845.76,0.79517597]
[1756998271192,1.51559487,846.41,845.76,0.79517597]
[1756998271389,0.20558142,846.52,845.7,0.79517597]
[1756998271390,0.72074742,846.4,845.7,0.79517597]
[1756998271591,0.79484745,846.44,845.65,0.79517597]
[1756998271788,0.72074742,846.43,845.65,0.79517597]
[1756998272092,0.72074742,846.43,845.64,0.79517597]
[1756998272295,0.72074742,846.43,845.65,0.79517597]
[1756998272589,0.79484745,846.44,845.65,0.79517597]
[1756998272789,0.72127302,846.43,845.65,0.79517597]
[1756998274395,0.79484745,846.39,845.65,0.79517597]
[1756998274589,0.79484745,846.31,845.67,0.79517597]
[1756998274787,0.72127302,846.3,845.67,0.79517597]
[1756998275390,1.51612047,846.3,845.67,0.79517597]
[1756998275588,0.72127302,846.29,845.67,0.79517597]
[1756998276093,0.721351,846.29,845.67,0.79517597]
[1756998277394,0.721351,846.29,845.16,0.20565492]
[1756998277395,0.721351,846.29,845.68,0.79517597]
[1756998279497,1.51619845,846.29,845.68,0.79517597]
[1756998279697,0.721351,846.28,845.68,0.79517597]
[1756998280497,0.721351,846.28,845.67,0.79517597]
[1756998280694,0.721351,846.3,845.67,0.79517597]
[1756998280998,1.51619845,846.3,845.67,0.79517597]
[1756998281294,0.79484745,846.26,845.63,0.79517597]
[1756998281497,0.721351,846.25,845.63,0.79517597]
[1756998282800,0.721351,846.25,845.6,0.79517597]
[1756998282994,0.721351,846.3,845.6,0.79517597]
[1756998285000,0.72149744,846.3,845.6,0.79517597]
[1756998285500,0.72149744,846.3,845.59,0.79517597]
[1756998287697,0.79484745,846.32,845.59,0.79517597]
[1756998287698,0.72149744,846.31,845.59,0.79517597]
[1756998287900,0.72149744,846.31,845.57,0.79517597]
[1756998288095,0.72149744,846.34,845.57,0.79517597]
[1756998289202,0.72149744,846.34,845.56,0.79517597]
[1756998289501,0.72149744,846.34,845.16,0.20565492]
[1756998289502,0.79484745,846.35,845.53,0.79517597]
[1756998289802,0.72149744,846.34,845.53,0.79517597]
[1756998290704,0.72149744,846.34,845.52,0.79517597]
[1756998290904,0.72149744,846.35,845.52,0.79517597]
[1756998291610,0.72149744,846.35,845.51,0.79517597]
[1756998291806,1.51634489,846.36,845.51,0.79517597]
[1756998292005,0.72149744,846.35,845.51,0.79517597]
[1756998292705,0.72149744,846.36,845.51,0.79517597]
[1756998293104,0.72149744,846.36,845.5,0.79517597]
[1756998296711,1.51634489,846.36,845.51,0.79517597]
[1756998296911,0.72149744,846.35,845.51,0.79517597]
[1756998299210,1.51634489,846.35,845.51,0.79517597]
[1756998299413,0.72149744,846.34,845.51,0.79517597]
[1756998300608,1.51634489,846.34,845.52,0.79517597]
[1756998300814,0.72149744,846.33,845.52,0.79517597]
[1756998301314,1.51634489,846.33,845.5,0.79517597]
[1756998301515,0.79484745,846.29,845.53,0.79517597]
[1756998301810,0.79484745,846.27,845.51,0.79517597]
[1756998302114,0.72149744,846.26,845.5,0.79517597]
[1756998302513,0.79484745,846.22,845.54,0.79517597]
[1756998302710,0.72149744,846.21,845.54,0.79517597]
[1756998302910,0.72149744,846.21,845.52,0.79517597]
[1756998303110,0.72149744,846.24,845.52,0.79517597]
[1756998303314,0.72149744,846.24,845.51,0.79517597]
[1756998303615,1.51634489,846.25,845.5,0.79517597]
[1756998303814,0.72149744,846.24,845.5,0.79517597]
[1756998304116,0.72149744,846.24,845.49,0.79517597]
[1756998304712,0.72149744,846.24,845.5,0.79517597]
[1756998304913,0.72149744,846.24,845.51,0.79517597]
[1756998305114,0.72149744,846.26,845.51,0.79517597]
[1756998306613,0.72149744,846.26,845.5,0.79517597]
[1756998306817,0.72149744,846.28,845.5,0.79517597]
[1756998308316,0.72149744,846.28,845.49,0.79517597]
[1756998309320,1.51634489,846.28,845.49,0.79517597]
[1756998309618,0.72149744,846.27,845.49,0.79517597]
[1756998309920,0.72149744,846.28,845.49,0.79517597]
[1756998311322,0.72182666,846.28,845.49,0.79517597]
[1756998312421,0.79484745,846.26,845.51,0.79517597]
[1756998312621,0.72182666,846.25,845.51,0.79517597]
[1756998313318,1.51667411,846.25,845.52,0.79517597]
[1756998313622,0.72182666,846.24,845.52,0.79517597]
[1756998314217,0.79484745,846.24,845.52,0.79517597]
[1756998314819,0.72174935,846.23,845.52,0.79517597]
[1756998315017,0.72174935,846.23,845.53,0.79517597]
[1756998315823,0.79484745,846.25,845.52,0.79517597]
[1756998316423,0.79484745,846.22,845.54,0.79517597]
[1756998316617,0.72172537,846.21,845.54,0.79517597]
[1756998317123,1.51657282,846.21,845.55,0.79517597]
[1756998317422,0.72172537,846.2,845.54,0.79517597]
[1756998317919,0.72172537,846.2,845.53,0.79517597]
[1756998318220,0.72172537,846.21,845.53,0.79517597]
[1756998318721,1.51657282,846.21,845.54,0.79517597]
[1756998319019,0.72172537,846.2,845.54,0.79517597]
[1756998319420,0.72172537,846.2,845.53,0.79517597]
[1756998320520,0.72172537,846.21,845.53,0.79517597]
[1756998321321,0.72172537,846.21,845.54,0.79517597]
[1756998321322,1.51657282,846.21,845.54,0.79517597]
[1756998321625,0.72172537,846.2,845.54,0.79517597]
[1756998325123,1.51657282,846.2,845.54,0.79517597]
[1756998325328,0.79484745,846.16,845.45,0.79517597]
[1756998325624,1.51657282,846.15,845.43,0.79517597]
[1756998325824,0.79484745,846.13,845.41,0.79517597]
[1756998326127,1.51657282,846.12,845.4,0.79517597]
[1756998326427,0.72172537,846.11,845.4,0.79517597]
[1756998327824,0.79484745,846.06,845.37,0.79517597]
[1756998328026,0.72172537,846.05,845.37,0.79517597]
[1756998329023,1.51657282,846.05,845.37,0.79517597]
[1756998329326,0.72172537,846.04,845.35,0.79517597]
[1756998329526,0.72172537,846.04,845.36,0.79517597]
[1756998330123,0.72172537,846.04,845.35,0.79517597]
[1756998330423,1.51657282,846.05,845.36,0.79517597]
[1756998330623,0.72172537,846.04,845.36,0.79517597]
[1756998331124,0.72172537,846.04,845.35,0.79517597]
[1756998331427,0.72172537,846.05,845.37,0.79517597]
[1756998332222,0.72172537,846.05,845.36,0.79517597]
[1756998332425,0.72172537,846.06,845.37,0.79517597]
[1756998332625,1.51657282,846.06,845.37,0.79517597]
[1756998332823,0.72172537,846.05,845.37,0.79517597]
[1756998333223,0.72172537,846.05,845.35,0.79517597]
[1756998333527,0.72172537,846.08,845.35,0.79517597]
[1756998333728,0.79484745,846.09,845.35,0.79517597]
[1756998333924,0.72215775,846.08,845.35,0.79517597]
[1756998334126,0.72215775,846.08,845.34,0.79517597]
[1756998334324,0.72215775,846.09,845.34,0.79517597]
[1756998334532,1.5170052,846.1,845.34,0.79517597]
[1756998334828,0.72215775,846.09,845.34,0.79517597]
[1756998336129,0.79484745,846.1,845.34,0.79517597]
[1756998336329,0.72205303,846.09,845.34,0.79517597]
[1756998337322,0.20571874,845.91,845.34,0.79517597]
[1756998337624,0.20571874,845.91,845.32,0.79517597]
[1756998337928,0.20571874,845.91,845.3,0.79517597]
[1756998338227,0.20571874,845.91,845.29,0.79517597]
[1756998338624,0.20571874,845.91,845.28,0.79517597]
[1756998339424,0.20571874,845.91,845.27,0.79517597]